Cogmind - Beta 13 @@@ ROGUE MODE // 2024.03.24 @ 11:00:15 Player: Oldman Pu Result: Destroyed by G-34 Mercenary with Small Laser Performance ------------- Evolutions (0) 0 Regions Visited (1) 200 Robots Destroyed (16) 80 Value Destroyed (275) 275 Prototype IDs (0) 0 Alien Tech Used (0) 0 Bonus (0) 0 TOTAL SCORE: 555 Bonus ------- None Cogmind --------- Core Integrity 0/250 Matter 221/300 Energy 500/500 System Corruption 0% Temperature Cool (69) Movement Rolling (115) Ox1 Location -10/Materials Parts ------- > --- POWER (1) -------- Ion Engine > --- PROPULSION (2) --- Compact Wheel > --- UTILITY (2) ------ Large Storage Unit High-capacity Battery > --- WEAPON (2) ------- Light Assault Rifle > --- INVENTORY (15) --- Ion Engine Ion Engine Compact Wheel Huge Storage Unit High-capacity Battery (250) Large Matter Pod (0) Small Laser Small Laser Small Laser Light Assault Rifle Light Assault Rifle Light Assault Rifle Light Cannon Peak State ------------ > --- POWER ------------ Ion Engine > --- PROPULSION ------- Wheel Compact Wheel > --- UTILITY ---------- Large Storage Unit High-capacity Battery > --- WEAPON ----------- Light Assault Rifle Light Cannon > --- INVENTORY -------- Ion Engine Ion Engine Compact Wheel Huge Storage Unit Medium Battery Large Matter Pod Small Laser Small Laser Small Laser Light Assault Rifle Light Assault Rifle Light Assault Rifle Light Assault Rifle [Rating: 8] Favorites ----------- Power Ion Engine Engine Ion Engine Propulsion Compact Wheel Wheel Compact Wheel Utility Small Storage Unit Storage Small Storage Unit Weapon Light Assault Rifle Energy Gun Small Laser Ballistic Gun Light Assault Rifle Ballistic Cannon Light Cannon Build | -11 -10 ------- Run | Yrd Mat Slots Evolved . | . . Power . | . . Propulsion . | . . Utility . | . . Weapon . | . . Parts Attached 18 | 6 12 Power 3 | 1 2 Engine 3 | 1 2 Core . | . . Reactor . | . . Propulsion 4 | 2 2 Treads . | . . Leg . | . . Wheel 4 | 2 2 Hover . | . . Flight . | . . Utility 5 | 1 4 Device . | . . Storage 5 | 1 4 Processor . | . . Hackware . | . . Protection . | . . Artifact . | . . Weapon 6 | 2 4 Energy Gun 1 | 1 . Energy Cannon . | . . Ballistic Gun 4 | 1 3 Ballistic Cannon 1 | . 1 Launcher . | . . Special Weapon . | . . Impact Weapon . | . . Slashing Weapon . | . . Piercing Weapon . | . . Special Melee Weapon . | . . Unidentified Prototypes . | . . Parts Lost 5 | . 5 Power 1 | . 1 Propulsion 2 | . 2 Utility . | . . Weapon 2 | . 2 Highest Loss Streak 2 | . 2 To Critical Strikes . | . . Average Slot Usage (%) 83 | . 83 Engine 13 | . 13 Wheel 27 | . 27 Storage 14 | . 14 Ballistic Gun 19 | . 19 Ballistic Cannon 6 | . 6 Naked Turns . | . . Heaviest Build 99 | 10 99 Greatest Support 32 | 26 32 Greatest Overweight (x) 3 | 1 3 Average Overweight (x) . | . . Largest Inventory Capacity 25 | 8 25 Average Capacity 11 | 7 11 Most Carried 13 | . 13 Average Carried 5 | . 5 Final Capacity 15 | 8 15 Final Carried 13 | . 13 Class Distribution -------------------- 100% | Mutant Dominant Class ---------------- Mutant | -10/Materials Resources | -11 -10 ----------- Run | Yrd Mat Matter Collected 415 | 175 240 Remotely . | . . Salvage Created 545 | . 545 Parts 34 | . 34 Haulers Intercepted 2 | . 2 Recyclers Shooed 3 | . 3 Parts Field Recycled . | . . Retrieved Matter . | . . Parts Self-Destructed . | . . Prevented . | . . Kills | -11 -10 ------- Run | Yrd Mat Combat Hostiles Destroyed 11 | . 11 Guns 11 | . 11 Classes Destroyed 5 | . 5 Hauler 2 | . 2 Recycler 2 | . 2 Watcher 1 | . 1 Swarmer 6 | . 6 Grunt 5 | . 5 Best Kill Streak 4 | . 4 Combat Bots Only 3 | . 3 Max Kills in Single Turn 1 | . 1 Gunslinging . | . . Exploded . | . . Melee . | . . Uniques/NPCs Destroyed . | . . Combat | -11 -10 -------- Run | Yrd Mat Hostile Shots Fired 101 | . 101 Missed 23 | . 23 Damage Taken 864 | . 864 Core 255 | . 255 Absorbed by Shields . | . . Core Remaining (%) 100 | 100 . Volleys Fired 73 | . 73 Largest 2 | . 2 Hottest 60 | . 60 Shots Fired 129 | . 129 Gun 125 | . 125 Cannon 4 | . 4 Launcher . | . . Special . | . . Kinetic 123 | . 123 Thermal 6 | . 6 Explosive . | . . Electromagnetic . | . . Robot Hit Streak 14 | . 14 Robot Miss Streak 3 | . 3 Penetration Max . | . . Secondary Targets 1 | . 1 Max Gunslinging Chain 1 | . 1 Shots Hit Robots 89 | . 89 Core Hits 37 | . 37 Critical Kills . | . . Critical Parts Destroyed . | . . Critical Strikes 1 | . 1 Blast 1 | . 1 Melee Attacks . | . . Impact . | . . Slashing . | . . Piercing . | . . Sneak Attacks . | . . Combat Hostiles . | . . Follow-up Attacks . | . . Damage Inflicted 737 | . 737 Guns 682 | . 682 Cannons 55 | . 55 Explosions . | . . Melee . | . . Ramming . | . . Kinetic 682 | . 682 Thermal 55 | . 55 Explosive . | . . Electromagnetic . | . . Impact . | . . Slashing . | . . Piercing . | . . Highest Corruption . | . . Average Corruption . | . . Corruption Purged . | . . Corruption Blocked . | . . Overload Shots . | . . Overflow Damage . | . . Projectiles . | . . Explosions . | . . Melee . | . . Knockbacks . | . . Impact . | . . Kinetic . | . . Secondary . | . . Self-Inflicted Damage . | . . Shots . | . . Rammed . | . . Targets Rammed . | . . Kicked . | . . Crushed . | . . Highest Temperature 61 | . 61 Average Temperature 24 | . 24 Received Heat Transfer 372 | . 372 Siege Activations . | . . Robots Corrupted . | . . Combat Hostiles . | . . Parts Fried . | . . Impact Corruptions . | . . Robots Melted . | . . Combat Hostiles . | . . Parts Melted . | . . Heat Transferred 125 | . 125 Parts Sabotaged . | . . Parts Stolen . | . . Parts Stripped . | . . Power Chain Reactions . | . . Alert | -11 -10 ------- Run | Yrd Mat Peak Influence 297 | . 297 Initial . | . . Average 134 | . 140 Maximum Alert Level 1 | . 1 Low Security (%) 78 | 100 77 Level 1 21 | . 22 Level 2 . | . . Level 3 . | . . Level 4 . | . . Level 5 . | . . High Security . | . . Max Security . | . . Squads Dispatched 3 | . 3 Investigation 1 | . 1 Extermination . | . . Reinforcement 2 | . 2 Assault . | . . Garrison . | . . Intercept . | . . Searches Triggered . | . . Construction Impeded . | . . Haulers Reinforced . | . . Active Scanning Responses . | . . Cargo Convoy Interrupts . | . . Stealth | -11 -10 --------- Run | Yrd Mat Distress Signals 1 | . 1 Communications Jammed . | . . Distress Signals . | . . Times Spotted 19 | . 19 Peak Tracking Total 4 | . 4 Tactical Retreats . | . . Traps | -11 -10 ------- Run | Yrd Mat Traps Triggered 1 | . 1 Indirectly . | . . Trap Hack Attempts . | . . Triggered . | . . Disarmed . | . . Reprogrammed . | . . Reused . | . . Traps Extracted . | . . Installed . | . . Triggered . | . . Machines | -11 -10 ---------- Run | Yrd Mat Machines Disabled . | . . Max in Single Turn . | . . Machines Repaired . | . . Machines Dismantled . | . . Machines Sabotaged . | . . Overloaded Fab Kills . | . . Hacking | -11 -10 --------- Run | Yrd Mat Machines Accessed 2 | . 2 Terminals 2 | . 2 Fabricators . | . . Repair Stations . | . . Recycling Units . | . . Scanalyzers . | . . Garrison Access . | . . Total Hacks 3 | . 3 Successful 2 | . 2 Failed 1 | . 1 Catastrophic . | . . Database Lockouts . | . . Manual . | . . Terminals 3 | . 3 Fabricators . | . . Repair Stations . | . . Recycling Units . | . . Scanalyzers . | . . Garrison Access . | . . Terminal Hacks 2 | . 2 Locate Traps 2 | . 2 Fabricator Hacks . | . . Repair Station Hacks . | . . Recycling Unit Hacks . | . . Scanalyzer . | . . Garrison Access Hacks . | . . Unauthorized Hacks . | . . Terminals . | . . Fabricators . | . . Repair Stations . | . . Recycling Units . | . . Scanalyzers . | . . Garrison Access . | . . Data Cores Recovered . | . . Used . | . . Hacking Detections 1 | . 1 Full Trace Events . | . . Feedback Events . | . . Feedback Blocked . | . . Robot Schematics Acquired . | . . Robots Built . | . . Authchips . | . . Time . | . . Total Robot Build Rating . | . . Part Schematics Acquired . | . . Parts Built . | . . Authchips . | . . Time . | . . Total Part Build Rating . | . . Parts Repaired . | . . Time . | . . Parts Recycled . | . . Recycled Matter . | . . Retrieved Matter . | . . Retrieved Components . | . . Parts Scanalyzed . | . . Part Schematics Acquired . | . . Parts Damaged . | . . Bothacking | -11 -10 ------------ Run | Yrd Mat Used RIF Installer . | . . Robots Hacked . | . . Non-combat . | . . Combat . | . . Robot Hacks Applied . | . . Relay Couplers Released . | . . Fabnet Peak Effective % . | . . Robots Rewired . | . . Allies Hacked . | . . Hacks Repelled . | . . Allies | -11 -10 -------- Run | Yrd Mat Total Allies . | . . Largest Group . | . . Highest-Rated Group . | . . Highest-Rated Ally . | . . Total Orders . | . . Ally Attacks . | . . Total Damage . | . . Kills . | . . Allies Corrupted . | . . Allies Melted . | . . Intel | -11 -10 ------- Run | Yrd Mat Robot Analysis Total . | . . Derelict Logs Recovered . | . . Drone Launches . | . . Drone Recoveries . | . . Exploration | -11 -10 ------------- Run | Yrd Mat Turns Passed 892 | 40 852 Spaces Moved 644 | 36 608 Core 7 | 7 . Treads . | . . Legs . | . . Wheels 637 | 29 608 Hover . | . . Flight . | . . Fastest Speed 50 | 50 90 Average Speed 100 | 87 100 Slowest Speed 145 | 100 145 Overloaded Moves . | . . Propulsion Burnouts . | . . Robots Hopped . | . . Cave-ins Triggered . | . . Exploration Rate (%) 46 | 3 89 Regions Visited 1 Branch Regions . Pre-discovered Areas . | . . Known Exits Taken . | . . Unknown Exits Taken 1 | 1 . Scrap Searched . | . . Spaces Dug . | . . Terrain Destroyed . | . . Melee . | . . Projectile . | . . AOE . | . . Terrain Rammed . | . . Walls Destroyed . | . . Machines Disabled . | . . Actions | -11 -10 --------- Run | Yrd Mat Total 780 | 41 739 Wait 28 | . 28 Move 643 | 35 608 Hop . | . . Pick Up 13 | . 13 Fast Attach 12 | 6 6 Attach 1 | . 1 Detach 1 | . 1 Swap 5 | . 5 Drop 4 | . 4 Fire 73 | . 73 Melee . | . . Ram . | . . Kick . | . . Crush . | . . Escape Stasis . | . . Rewire . | . . Trap . | . . Miscellaneous . | . . Route ------- -11/Scrapyard -10/Materials (discovered 5 exits: [*Mat x3] / [*Min x2]) History --------- Turn | Location | Event 9 | -11/Scrapyard | Discovered new exit (range 15) 41 | -11/Scrapyard | Entered Materials 182 | -10/Materials | Discovered new exit (range 3) 302 | -10/Materials | Build established: Mutant 339 | -10/Materials | Discovered new exit (range 8) 368 | -10/Materials | Discovered new exit (range 14) 664 | -10/Materials | Discovered new exit (range 5) 712 | -10/Materials | Discovered new exit (range 3) 871 | -10/Materials | Core integrity fell below 50% 890 | -10/Materials | Core integrity fell below 20% 893 | -10/Materials | Destroyed by G-34 Mercenary with Small Laser Last Messages --------------- 00728_ Acquired Sml. Laser. 00731_ Acquired Lgt. Assault Rifle. 00735_ Acquired Sml. Laser. 00792_ Acquired Lrg. Matter Pod. 00805_ T-07 Excavator is excavating. 00832_ Acquired Hcp. Battery. 00833_ Dropped Med. Battery. 00834_ Extracted 150 energy. 00835_ Acquired Hcp. Battery. 00835_ R-06 Scavenger collects Med. Battery. 00840_ Triggered Alarm Trap. 00840_ An alarm sounds. 00840_ ALERT: Alarm triggered, dispatching investigation squad. 00856_ Acquired 1 matter. 00861_ G-47 Trooper Aluminum Leg blasted off. 00875_ R-06 Scavenger collects Aluminum Leg. 00881_ Destroyed Lgt. Nuclear Core. 00881_ Lgt. Assault Rifle destroyed. 00883_ Wheel destroyed. 00889_ G-47 Trooper destroyed. Map ----- +----------------------------------------------------+ | | | | | | | | | ??????????????????????????????????????? | | ??????????????????????????????????????? | | ??????????????????????????????????????? | | ??????????????????????????????????????? | | ??????????????????????????????????????? | | ??????????????????????????????????????? | | ??????????????????????????????????????? | | ??????????????????????????????????????? | | ????????????????????????????????????### | | ????????????????????????????????????# | | ????????????##+##???????????????????# | | ???????????? #???????????????????# | | ???????????? #???????????????????# | | ???????????? ###########?????????# | | ???????????? ???? | | ????????????# ? | | ????????????# | | ????????????# | | ????????????# | | ????????????#% | | ????????#####g#### ##??????#### | | ????????# % @ # #??????????# | | ????????# !!! # ??????????# | | ????????# !! g #??????????# | | ????????# # #??????????# | | ????????# ## #???######## | | ????????# ## ##### """ + | | ????????# ## + """ # | | ????????# ## # """ # | | ????????# g ## # # | | ????????##/######## + # | | ?????????# #??????# ## + | | ???####### ######## ############## | | ???# #?????????#### | | ???# #########+##+#?????????#" | | ???# # # #?????????#"" | | ???# + # """ #?????????#!! | | ???# ###### # """ #?????????#"" < | | ???# #????# # """ #?????????#!! | | ???# #????# # #########?#"" | | ???# #????# !######## #?#" | | ???# #????####+### ## =#?#### | | ???# #????# ## =#????# | | ???# #????# < + ==#????# | | ####+###### ## #????# | | # ######### ## #???## | +----------------------------------------------------+ Best States ------------- Heat Dissipation 25 Energy Generation 10 Energy Capacity 500 Matter Stores 300 Matter Capacity 300 Sight Range 16 Terrain Scan Density 10 Evasion (%) 42 Item Schematics ----------------- None Robot Schematics ------------------ None Fabricated ------------ Nothing Alien Tech Used ----------------- None Achievements -------------- None Challenges ------------ None Game ------ Seed FactoryChromaticVibroblade Manual? 0 Play Time 00:10:54 Cumulative 199.3 hours Start 2024.03.24 @ 10:50:24 End 2024.03.24 @ 11:00:15 Sessions 1 Manual Loads 0 Difficulty Rogue Special Mode None Game No. 151 Rogue 139 Adventurer 12 Explorer 0 Win Type - Total 1 Types 1/0/0/0/0/0/0/0/0 Lore% 27 Gallery% 44 Achievement% 32 Wizard Run 0 Options --------- Layout 1 ASCII 0 Keyboard 0 Movement Mouse Keybinds 0 Fullscreen 1 Font 32/SmallcapsGlow Map View 77x35 Zoom Use 0% Tactical HUD 1 Map Filters NONE Filters NONE Steam 1 RUN: 8e3ab6c2-cbbc-4c1a-a762-d05f9bd5045c